Workbook

Sheet Lisa 6.1. Lisa 1 Parendustööd
H1: Lisa nr 1
H2: Üürilepingu nr KPJ-4/2020-307 lisale nr 6.1
B4: Tööde loetelu ja tegelik maksumus - "Pärnu riigimaja, Akadeemia 2"
AB6: Eksplikatsioon
B8: Jrk nr | C8: Töö nimetus | D8: Tegelik maksumus, EUR, km-ta | E8: Üürnikuspetsiifiline osa ehitusest | F8: Üürnikuspetsiifiline osa sisustusest | G8: Üle 10a amort | H8: Jääkväärtus 10a lõpus | K8: PARENDUSTÖÖDE JAGUNEMINE: | M8: RaM osakaal pinnast | N8: RaM maksumus | O8: TI osakaal pinnast | P8: TI maksumus | Q8: SKA osakaal pinnast | R8: SKA maksumus | S8: TA osakaal pinnast | T8: TA maksumus | U8: KIK osakaal pinnast | V8: KIK maksumus | W8: Aktiivne vakantsus osakaal pinnast | X8: Aktiivne vakantsus maksumus | AB8: Üürnik | AC8: Ainukasutuses pind | AD8: Ühiskasutuses korruste pind | AE8: Ühiskasutuses hoone pind | AF8: Ühiskasutuses muu pind | AG8: Kokku | AH8: Osakaal
B9: ARENDUSTEGEVUS | D9: =SUM(D10+D12+D21+D25) -> 262,190.11 | H9: =SUM(H10+H12+H21+H25) -> 0 | M9: =AH9 -> 34.2% | O9: =AH10 -> 8.0% | Q9: =AH11 -> 41.8% | S9: =AH12 -> 14.7% | U9: =AH13 -> 1.3% | W9: =AH14 -> -0.0% | AB9: Rahandusministeerium | AC9: 337.3 | AD9: 0.0 | AE9: 142.1 | AF9: 0.0 | AG9: 479.4 | AH9: 34.19%
B10: 1 | C10: Kinnisvara omandamise ja väärtustamise kulud | D10: =SUM(D11:D11) -> 6,540.00 | H10: =SUM(H11:H11) -> 0 | K10: Parendustööd | N10: =$Y$10*M9 -> 879,145.18 | P10: =$Y$10*O9 -> 205,566.17 | R10: =$Y$10*Q9 -> 1,075,598.79 | T10: =$Y$10*S9 -> 378,343.64 | V10: =$Y$10*U9 -> 32,840.88 | X10: =$Y$10*W9 -> -0.00 | Y10: =D81-D25 -> 2,571,495 | AB10: Tööinspektsioon | AC10: 75.0 | AD10: 0.0 | AE10: 31.6 | AF10: 5.5 | AG10: 112.1 | AH10: 7.99%
B11: 1.1. | C11: Haldamine | D11: 6,540.00 | G11: 10 a | H11: =IF(ISBLANK(G11),"",D11-D11/G11*10) -> 0 | K11: Projektijuhtimine | N11: =$Y$11*M9 -> 48,723.39 | P11: =$Y$11*O9 -> 11,392.75 | R11: =$Y$11*Q9 -> 59,611.11 | T11: =$Y$11*S9 -> 20,968.31 | V11: =$Y$11*U9 -> 1,820.09 | X11: =$Y$11*W9 -> -0.00 | Y11: =D25 -> 142,516 | AB11: Sotsiaalkindlustusamet | AC11: 351.1 | AD11: 0.0 | AE11: 147.9 | AF11: 87.5 | AG11: 586.6 | AH11: 41.83%
B12: 2 | C12: Tellija muud arendusaegsed kulud; va intress | D12: =SUM(D13:D20) -> 106,887.67 | H12: =SUM(H13:H20) -> 0 | K12: Parendustööde + Projektijuhtimise otsene kulu | N12: =SUM(N10:N11) -> 927,868.57 | P12: =SUM(P10:P11) -> 216,958.91 | R12: =SUM(R10:R11) -> 1,135,209.90 | T12: =SUM(T10:T11) -> 399,311.94 | V12: =SUM(V10:V11) -> 34,660.97 | X12: =SUM(X10:X11) -> -0.00 | Y12: =SUM(Y10:Y11) -> 2,714,010 | AB12: Terviseamet | AC12: 123.5 | AD12: 0.0 | AE12: 52.0 | AF12: 30.8 | AG12: 206.3 | AH12: 14.71%
B13: 2.1. | C13: Omanikujärelevalve | D13: 53,924.59 | G13: 10 a | H13: =IF(ISBLANK(G13),"",D13-D13/G13*10) -> 0 | K13: Projektijuhtimise kaudne kulu | N13: =$Y$13*M9 -> 23,196.71 | P13: =$Y$13*O9 -> 5,423.97 | R13: =$Y$13*Q9 -> 28,380.25 | T13: =$Y$13*S9 -> 9,982.80 | V13: =$Y$13*U9 -> 866.52 | X13: =$Y$13*W9 -> -0.00 | Y13: =D84 -> 67,850 | AB13: Keskkonnainvesteeringute Keskus | AC13: 12.6 | AD13: 0.0 | AE13: 5.3 | AF13: 0.0 | AG13: 17.9 | AH13: 1.28%
B14: 2.2. | C14: Lubade taotlemisega seotud kulud | H14: =IF(ISBLANK(G14),"",D14-D14/G14*10) ->  | K14: Intress | N14: =$Y$14*M9 -> 43,457.42 | P14: =$Y$14*O9 -> 10,161.43 | R14: =$Y$14*Q9 -> 53,168.41 | T14: =$Y$14*S9 -> 18,702.07 | V14: =$Y$14*U9 -> 1,623.37 | X14: =$Y$14*W9 -> -0.00 | Y14: =D82 -> 127,113 | AB14: Aktiivne vakantsus | AC14: -0.0 | AD14: 0.0 | AE14: -0.0 | AF14: 0.0 | AG14: -0.0 | AH14: -0.00%
B15: 2.3. | C15: Muud kontrorikulud | K15: CO2 vahendid | N15: =$Y$15*M9 -> 0.00 | P15: =$Y$15*O9 -> 0.00 | R15: =$Y$15*Q9 -> 0.00 | T15: =$Y$15*S9 -> 0.00 | V15: =$Y$15*U9 -> 0.00 | X15: =$Y$15*W9 -> 0.00 | Y15: =D88 -> 0 | AB15: Üüritav pind kokku | AC15: 899.5 | AD15: 0.0 | AE15: 379.0 | AF15: 123.8 | AG15: 1,402.3 | AH15: 100.00%
B16: 2.4. | C16: Ekspertiisid, konsultatsioonid, mõõtmised jne | D16: 13,280.00 | G16: 10 a | H16: 0 | K16: Parendustööde algväärtus | N16: =SUM(N12:N14)-N15 -> 994,522.70 | P16: =SUM(P12:P14)-P15 -> 232,544.32 | R16: =SUM(R12:R14)-R15 -> 1,216,758.56 | T16: =SUM(T12:T14)-T15 -> 427,996.81 | V16: =SUM(V12:V14)-V15 -> 37,150.86 | X16: =SUM(X12:X14)-X15 -> -0.00 | Y16: =SUM(Y12:Y14)-Y15 -> 2,908,973 | AB16: Passiivne vakantsus | AG16: 0.0
B17: 2.5. | C17: Ehitusaegne kindlustus | K17: Üürniku spetsiifiline osa parendustöödest | N17: =$Y$17*M9 -> 146,220.31 | P17: =$Y$17*O9 -> 34,189.97 | R17: =$Y$17*Q9 -> 178,894.68 | T17: =$Y$17*S9 -> 62,926.50 | V17: =$Y$17*U9 -> 5,462.13 | X17: =$Y$17*W9 -> -0.00 | Y17: =SUM(E81:F81) -> 427,694
B18: 2.6. | C18: Kulud seoses ehitustööde katkemisega | K18: Parendustööde lõppväärtus | N18: =$Y$18*M9 -> 127,881.99 | P18: =$Y$18*O9 -> 29,902.01 | R18: =$Y$18*Q9 -> 156,458.48 | T18: =$Y$18*S9 -> 55,034.53 | V18: =$Y$18*U9 -> 4,777.09 | X18: =$Y$18*W9 -> -0.00 | Y18: =H81 -> 374,054
B19: 2.7. | C19: Juriidiline nõustamine
B20: 2.8. | C20: Muud tellija ehitusaegsed kulud | D20: 39,683.08 | G20: 10 a | H20: 0
B21: 3 | C21: Liitumised | D21: =SUM(D22:D24) -> 6,246.80 | H21: =SUM(H22:H24) -> 0
B22: 3.1. | C22: Elektrilevi liitumine | D22: 1,092.80 | G22: 10 a | H22: =IF(ISBLANK(G22),"",D22-D22/G22*10) -> 0
B23: 3.2. | C23: Pärnu Vesi liitumine | D23: 1,374.00 | G23: 10 a | H23: 0
B24: 3.3. | C24: RIA võrgu ehitus | D24: 3,780.00 | G24: 10 a | H24: 0
B25: 4 | C25: Projektijuhtimise otsesed kulud | D25: =SUM(D26:D26) -> 142,515.64 | H25: =SUM(H26:H26) -> 0
B26: 4.1. | C26: Projektijuhtimise meeskonnakulud | D26: 142,515.64 | G26: 10 a | H26: =IF(ISBLANK(G26),"",D26-D26/G26*10) -> 0
B27: EHITAMINE | D27: =SUM(D28+D32) -> 2,519,944.87 | H27: =SUM(H28,H32,H79) -> 357,324
B28: 5 | C28: Projekteerimine ja uuringud | D28: =SUM(D29:D31) -> 124,114.00 | H28: =SUM(H29:H31) -> 0
B29: 5.1. | C29: Projekteerimine | D29: 124,114.00 | G29: 10 a
B30: 5.2.
B31: …
B32: 6 | C32: Ehituslepingud | D32: =SUM(D33,D71) -> 2,395,830.87 | H32: =SUM(H33:H72) -> 357,324
B33: 6.1. | C33: Ehituse petöövõtt | D33: =D34+D41+D44+D50+D55+D61+D64+D70 -> 2,357,425.56 | H33: =IF(ISBLANK(G33),"",D33-D33/G33*10) -> 
B34: 6.1.1. | C34: Välisrajatised | D34: =SUM(D35:D40) -> 190,270.11
C35: Ettevalmistus- ja lammutustööd | D35: 67,865.62 | G35: 10 a | H35: 0
C36: Hoonevälised ehitised | D36: 43,480.35 | G36: 15 a | H36: 14,493
C37: Välisvõrgud | D37: 38,898.98 | G37: 15 a | H37: 12,966
C38: Kaved maaalal | D38: 7,219.86 | G38: 15 a | H38: 2,407
C39: Maa-ala pinnakatted | D39: 23,633.09 | G39: 15 a | H39: 7,878
C40: Väikeehitised maaalal | D40: 9,172.21 | G40: 15 a | H40: 3,057
B41: 6.1.2. | C41: Alused ja vundamendid | D41: =SUM(D42:D43) -> 54,462.04
C42: Vundamendid | D42: 18,540.04 | G42: 25 a | H42: 11,124
C43: Aluspõrandad | D43: 35,922.00 | G43: 25 a | H43: 21,553
B44: 6.1.3. | C44: Kandetarindid | D44: =SUM(D45:D49) -> 55,022.82
C45: Kandvad ja välisseinad | D45: 3,234.00 | G45: 25 a | H45: 1,940
C46: Kandvad vaheseinad, postid, talad | D46: 26,360.00
C47: Vahe- ja katuslaed | D47: 14,153.74 | G47: 25 a | H47: 8,492
C48: Trepielemendid, pandused, kaldteed | D48: 1,942.47 | G48: 25 a | H48: 1,165
C49: Rõdud ja terrassid | D49: 9,332.61 | G49: 25 a | H49: 5,600
B50: 6.1.4. | C50: Fassaadielemendid ja katused | D50: =SUM(D51:D54) -> 215,850.28
C51: Välisseinte ja fassaadide katted | D51: 128,676.87 | G51: 15 a | H51: 42,892
C52: Aknad | D52: 10,028.74 | G52: 15 a | H52: 3,343
C53: Piirded ja käiguteed | D53: 64,492.05 | G53: 15 a | H53: 21,497
C54: Katusetarindid ja katusekatted | D54: 12,652.62 | G54: 20 a | H54: 6,326
B55: 6.1.5. | C55: Ruumitarindid ja pinnakatted | D55: =SUM(D56:D60) -> 502,633.35
C56: Vaheseinad | D56: 74,157.76 | G56: 10 a | H56: 0
C57: Uksed | D57: 137,974.93 | G57: 10 a | H57: 0
C58: Siseseinte pinnakatted | D58: 126,403.27 | E58: x | G58: 10 a | H58: 0
C59: Lagede pinnakatted | D59: 92,178.21 | E59: x | G59: 10 a | H59: 0
C60: Põrandad ja pinnakatted | D60: 71,919.18 | E60: x | G60: 10 a | H60: 0
B61: 6.1.6. | C61: Sisustus, inventar, seadmed | D61: =SUM(D62:D63) -> 93,352.11
C62: Sisaldub Lisa 2 Sisustus: Eritellimusel mööbel | D62: =SUM('Lisa 6.1. Lisa 2 Sisustus'!E74:E117)+SUM('Lisa 6.1. Lisa 2 Sisustus'!E120:E122) -> 84,854.69 | G62: 10 a | H62: 0
C63: Tõste- ja teisaldusmasinad | D63: 8,497.42 | G63: 10 a | H63: 0
B64: 6.1.7. | C64: Tehnosüsteemid | D64: =SUM(D65:D69) -> 850,859.50
C65: Veevarustus ja kanalisatsioon | D65: 60,611.90 | G65: 15 a | H65: 20,204
C66: Küte, ventilatsioon ja jahutus | D66: 270,294.93 | G66: 15 a | H66: 90,098
C67: Tugevvoolu paigaldis | D67: 246,859.65 | G67: 15 a | H67: 82,287
C68: Nõrkvoolupaigaldis ja automaatika | D68: 224,950.66 | G68: 10 a | H68: 0
C69: Tuletõrjevarustus | D69: 48,142.36 | G69: 10 a | H69: 0
B70: 6.1.8. | C70: Ehitusplatsi üld- ja korralduskulud | D70: 394,975.35 | G70: 10 a | H70: 0
B71: 6.2. | C71: Infograafika | D71: =SUM(D72) -> 38,405.31
B72: 6.2.1. | C72: Infograafika | D72: 38,405.31 | G72: 10 a | H72: 0
B73: SISUSTAMINE | D73: =SUM(D74) -> 153,922.93 | H73: =SUM(H74) -> 16,730
B74: 7 | C74: Sisustus ja kunstiteosed | D74: =SUM(D75:D77) -> 153,922.93 | H74: =SUM(H75:H77) -> 16,730
B75: 7.1. | C75: Tavasisustus | D75: =SUM('Lisa 6.1. Lisa 2 Sisustus'!E7:E73) -> 137,192.93 | F75: x | G75: 10 a | H75: =IF(ISBLANK(G75),"",D75-D75/G75*10) -> 0
B76: 7.2. | C76: Erisisustus
B77: 7.3. | C77: Kunst | D77: 16,730.00 | G77: Ei amortiseeri | H77: =D77 -> 16,730
B78: …
B79: RESERV | D79: =SUM(D80) -> 0.00 | H79: =SUM(H80) -> 0
B80: 8 | C80: Reserv | D80: 0.00 | G80: 10 a | H80: 0
B81: TEGELIK MAKSUMUS KOKKU, KM-TA (ilma sisustuseta) | D81: =SUM(D9+D27+D73+D79)-D62-D75 -> 2,714,010.29 | E81: =SUMIF(E9:E80,"x",D9:D80) -> 290,501 | F81: =SUMIF(F9:F80,"x",D9:D80) -> 137,193 | H81: =SUM(H9+H27+H73+H79) -> 374,054
B82: EHITUSTÖÖDE AEGNE INTRESS | D82: =SUM(D83) -> 127,112.71
B83: 9 | C83: Intressikulu | D83: 127,112.71
B84: PROJEKTIJUHTIMISE KAUDSED KULUD, KM-TA | D84: =SUM(D85) -> 67,850.26
B85: 10 | C85: 2.5% | D85: =D81*C85 -> 67,850.26
B86: TEGELIK MAKSUMUS KOKKU KOOS KAUDSETE KULUDEGA, KM-TA | D86: =SUM(D81++D82+D84) -> 2,908,973.25
B87: SISSEVOOL, KM-TA | D87: =SUM(D88) -> 0.00
B88: 11 | C88: CO2 vahendid
B89: TEGELIK MAKSUMUS KOOS KAUDSETE KULUDE JA SISSEVOOLUGA, KM-TA | D89: =D86-D87 -> 2,908,973.25
B90: KÄIBEMAKS | D90: =SUM(D91) -> 581,794.65
B91: 12 | C91: 20% | D91: =D86*C91 -> 581,794.65
B92: TEGELIK MAKSUMUS KOKKU, KM-GA | D92: =SUM(D89+D90) -> 3,490,767.91

Sheet Lisa 6.1. Lisa 2 Sisustus
G1: Lisa nr 2
G2: Üürilepingu nr KPJ-4/2020-307 lisale nr 6.1
B4: Sisustuse nimekiri ja tegelik maksumus | I4: Sisustuse jagunemine (ainukasutuses pinnal) | V4: Sisustuse jagunemine (ühiskasutuses pinnal) | AB4: Kokku (ainu- ja ühiskasutuses sisustuse jagunemine) | AJ4: Eksplikatsioon
C6: Kogus, tk | D6: Hind, EUR, km-ta | E6: Tegelik maksumus, EUR, km-ta | F6: Tavasisustus | G6: Erisisustus | I6: RaM kogus | J6: RaM maksumus | K6: TI kogus | L6: TI maksumus | M6: SKA kogus | N6: SKA maksumus | O6: TA kogus | P6: TA maksumus | Q6: KIK kogus | R6: KIK maksumus | S6: Ühiskasutus kogus | T6: Ühiskasutus maksumus | V6: RaM maksumus | W6: TI maksumus | X6: SKA maksumus | Y6: TA maksumus | Z6: KIK maksumus | AB6: RaM maksumus | AC6: TI maksumus | AD6: SKA maksumus | AE6: TA maksumus | AF6: KIK maksumus | AJ6: Üürnik | AK6: Ainukasutuses pind | AL6: Ühiskasutuses korruste pind | AM6: Ühiskasutuses hoone pind | AN6: Ühiskasutuses muu pind | AO6: Kokku | AP6: Osakaal
B7: D-01 Helisummutav tugitool 790x790x1480mm | C7: =IF(I7+K7+M7+O7+Q7+S7=0,"",I7+K7+M7+O7+Q7+S7) -> 14 | D7: 791 € | E7: =IFERROR(SUM(C7*D7),"") -> 11,074.00 | F7: x | H7: =IFERROR(IF(SUM(I7,K7,M7,O7,Q7,S7)-C7=0,"","K"),"") ->  | J7: =IF(ISBLANK(I7),"",SUM(I7*$D7)) ->  | L7: =IF(ISBLANK(K7),"",SUM(K7*$D7)) ->  | M7: 14 | N7: =IF(ISBLANK(M7),"",SUM(M7*$D7)) -> 11,074.00 € | P7: =IF(ISBLANK(O7),"",SUM(O7*$D7)) ->  | R7: =IF(ISBLANK(Q7),"",SUM(Q7*$D7)) ->  | T7: =IF(ISBLANK(S7),"",SUM(S7*$D7)) ->  | V7: =IFERROR(IF(ISBLANK($T7),"",$T7*$AP$7),"") ->  | W7: =IFERROR(IF(ISBLANK($T7),"",$T7*$AP$8),"") ->  | X7: =IFERROR(IF(ISBLANK($T7),"",$T7*$AP$9),"") ->  | Y7: =IFERROR(IF(ISBLANK($T7),"",$T7*$AP$10),"") ->  | Z7: =IFERROR(IF(ISBLANK($T7),"",$T7*$AP$11),"") ->  | AA7: =IF(SUM(T7)=SUM(V7:Z7),"","K") ->  | AB7: =IF(SUM(J7,V7)=0,"",SUM(J7,V7)) ->  | AC7: =IF(SUM(L7,W7)=0,"",SUM(L7,W7)) ->  | AD7: =IF(SUM(N7,X7)=0,"",SUM(N7,X7)) -> 11,074.00 € | AE7: =IF(SUM(P7,Y7)=0,"",SUM(P7,Y7)) ->  | AF7: =IF(SUM(R7,Z7)=0,"",SUM(R7,Z7)) ->  | AJ7: Rahandusministeerium | AK7: 337.3 | AL7: 0.0 | AM7: 142.1 | AN7: 0.0 | AO7: 479.4 | AP7: 34.19%
B8: D-02 Pöörleval jalal tugitool 780x1100x670mm | C8: =IF(I8+K8+M8+O8+Q8+S8=0,"",I8+K8+M8+O8+Q8+S8) -> 8 | D8: 493 € | E8: =IFERROR(SUM(C8*D8),"") -> 3,944.00 | F8: x | H8: =IFERROR(IF(SUM(I8,K8,M8,O8,Q8,S8)-C8=0,"","K"),"") ->  | J8: =IF(ISBLANK(I8),"",SUM(I8*$D8)) ->  | L8: =IF(ISBLANK(K8),"",SUM(K8*$D8)) ->  | M8: 8 | N8: =IF(ISBLANK(M8),"",SUM(M8*$D8)) -> 3,944.00 € | P8: =IF(ISBLANK(O8),"",SUM(O8*$D8)) ->  | R8: =IF(ISBLANK(Q8),"",SUM(Q8*$D8)) ->  | T8: =IF(ISBLANK(S8),"",SUM(S8*$D8)) ->  | Z8: =IFERROR(IF(ISBLANK($T8),"",$T8*$AP$11),"") ->  | AD8: 3,944.00 € | AJ8: Tööinspektsioon | AK8: 75.0 | AL8: 0.0 | AM8: 31.6 | AN8: 5.5 | AO8: 112.1 | AP8: 7.99%
B9: D-03 Diivan 670x1600x740mm | C9: 2 | D9: 366 € | E9: 732.00 | F9: x | I9: 1 | J9: 366.00 € | M9: 1 | N9: 366.00 € | AB9: 366.00 € | AD9: 366.00 € | AJ9: Sotsiaalkindlustusamet | AK9: 351.1 | AL9: 0.0 | AM9: 147.9 | AN9: 87.5 | AO9: 586.6 | AP9: 41.83%
B10: GK-01 Riidekapp | C10: 13 | D10: 136 € | E10: 1,771.90 | F10: x | S10: 13 | T10: 1,771.90 € | V10: 605.78 € | W10: 141.65 € | X10: 741.15 € | Y10: 260.70 € | Z10: 22.63 € | AB10: 605.78 € | AC10: 141.65 € | AD10: 741.15 € | AE10: 260.70 € | AF10: 22.63 € | AJ10: Terviseamet | AK10: 123.5 | AL10: 0.0 | AM10: 52.0 | AN10: 30.8 | AO10: 206.3 | AP10: 14.71%
B11: GK-02 Riidekapp | C11: 12 | D11: 109 € | E11: 1,302.60 | F11: x | S11: 12 | T11: 1,302.60 € | V11: 445.33 € | W11: 104.13 € | X11: 544.85 € | Y11: 191.65 € | Z11: 16.64 € | AB11: 445.33 € | AC11: 104.13 € | AD11: 544.85 € | AE11: 191.65 € | AF11: 16.64 € | AJ11: Keskkonnainvesteeringute Keskus | AK11: 12.6 | AL11: 0.0 | AM11: 5.3 | AN11: 0.0 | AO11: 17.9 | AP11: 1.28%
B12: K-01.1 Lockerkapp-9ne 1270x820x580mm | C12: 9 | D12: 349 € | E12: 3,145.41 | F12: x | M12: 9 | N12: 3,145.41 € | AD12: 3,145.41 € | AJ12: Aktiivne vakantsus | AK12: -0.0 | AL12: 0.0 | AM12: -0.0 | AN12: 0.0 | AO12: -0.0 | AP12: -0.00%
B13: K-01.2 Lockerkapp-6ne | C13: 3 | D13: 259 € | E13: 777.48 | F13: x | M13: 3 | N13: 777.48 € | AD13: 777.48 € | AJ13: Üüritav pind kokku | AK13: 899.5 | AL13: 0.0 | AM13: 379.0 | AN13: 123.8 | AO13: 1,402.3 | AP13: 100.00%
B14: K-02 Dokumendikapp 800xh1250x420mm | C14: 24 | D14: 140 € | E14: 3,348.24 | F14: x | I14: 9 | J14: 1,255.59 € | K14: 8 | L14: 1,116.08 € | M14: 6 | N14: 837.06 € | Q14: 1 | R14: 139.51 € | S14: 0 | T14: 0.00 € | V14: 0.00 € | W14: 0.00 € | X14: 0.00 € | Y14: 0.00 € | Z14: 0.00 € | AB14: 1,255.59 € | AC14: 1,116.08 € | AD14: 837.06 € | AF14: 139.51 € | AJ14: Passiivne vakantsus | AO14: 0.0
B15: K-02-a Dokumendikapp, ilma usteta, 800xh1250x420mm (107, 1tk) | C15: 1 | D15: 186 € | E15: 186.20 | F15: x | M15: 1 | N15: 186.20 € | AD15: 186.20 €
B16: K-03 Printerikapp 600x1200x660mm | C16: 4 | D16: 138 € | E16: 553.28 | F16: x | K16: 1 | L16: 138.32 € | M16: 2 | N16: 276.64 € | S16: 1 | T16: 138.32 € | V16: 47.29 € | W16: 11.06 € | X16: 57.86 € | Y16: 20.35 € | Z16: 1.77 € | AB16: 47.29 € | AC16: 149.38 € | AD16: 334.50 € | AE16: 20.35 € | AF16: 1.77 €
B17: K-03-s Printerikapi sokkel | C17: 1 | D17: 85 € | E17: 85.10 | F17: x | I17: 1 | J17: 85.10 € | AB17: 85.10 €
B18: K-03-a Printerikapp 600x1200x660mm (508, 1tk) | C18: 1 | D18: 0 € | E18: 0.00 | F18: x | I18: 1 | J18: 0.00 €
B19: K-04 Dokumendikapp 420x1200x887mm | C19: 5 | D19: 160 € | E19: 802.30 | F19: x | I19: 1 | J19: 160.46 € | O19: 3 | P19: 481.38 € | S19: 1 | T19: 160.46 € | V19: 54.86 € | W19: 12.83 € | X19: 67.12 € | Y19: 23.61 € | Z19: 2.05 € | AB19: 215.32 € | AC19: 12.83 € | AD19: 67.12 € | AE19: 504.99 € | AF19: 2.05 €
B20: K-04-a Dokumendikapp 420x1200x887mm (305, 1tk; 306, 1tk) | C20: 2 | D20: 364 € | E20: 727.53 | F20: x | O20: 2 | P20: 727.53 € | AE20: 727.53 €
B21: L-01 Elektriline töölaud 1600x800xh610-1260mm | C21: 80 | D21: 246 € | E21: 19,705.60 | F21: x | I21: 9 | J21: 2,216.88 € | K21: 10 | L21: 2,463.20 € | M21: 57 | N21: 14,040.24 € | O21: 1 | P21: 246.32 € | Q21: 1 | R21: 246.32 € | S21: 2 | T21: 492.64 € | V21: 168.42 € | W21: 39.38 € | X21: 206.06 € | Y21: 72.48 € | Z21: 6.29 € | AB21: 2,385.30 € | AC21: 2,502.58 € | AD21: 14,246.30 € | AE21: 318.80 € | AF21: 252.61 €
B22: L-02 Diivanilaud kandiline 700x1300x380mm | C22: 1 | D22: 117 € | E22: 116.61 | F22: x | M22: 1 | N22: 116.61 € | AD22: 116.61 €
B23: L-03 Töölaud 1200x600, h-740mm | C23: 2 | D23: 100 € | E23: 199.48 | F23: x | I23: 2 | J23: 199.48 € | AB23: 199.48 €
B24: L-04 Söögilaud 800x1400, h-740mm | C24: 2 | D24: 189 € | E24: 377.08 | F24: x | S24: 2 | T24: 377.08 € | V24: 128.92 € | W24: 30.14 € | X24: 157.72 € | Y24: 55.48 € | Z24: 4.82 € | AB24: 128.92 € | AC24: 30.14 € | AD24: 157.72 € | AE24: 55.48 € | AF24: 4.82 €
B25: L-05.1 Ümar koosolekulaud kõrge d-1200, h-752mm | C25: 4 | D25: 142 € | E25: 567.20 | F25: x | I25: 1 | J25: 141.80 € | M25: 1 | N25: 141.80 € | S25: 2 | T25: 283.60 € | V25: 96.96 € | W25: 22.67 € | X25: 118.62 € | Y25: 41.73 € | Z25: 3.62 € | AB25: 238.76 € | AC25: 22.67 € | AD25: 260.42 € | AE25: 41.73 € | AF25: 3.62 €
B26: L-05.2 Ümar koosolekulaud madal d-800, h-450mm | C26: 1 | D26: 100 € | E26: 99.63 | F26: x | M26: 1 | N26: 99.63 € | AD26: 99.63 €
B27: L-06 Sülearvutilaud 350x450, h-639mm | C27: 3 | D27: 99 € | E27: 297.57 | F27: x | M27: 3 | N27: 297.57 € | AD27: 297.57 €
B28: L-07 Ratastel seminarilaud 1400x700, h-734mm | C28: 8 | D28: 174 € | E28: 1,388.88 | F28: x | I28: 8 | J28: 1,388.88 € | AB28: 1,388.88 €
B29: L-08 koosolekulaud 1800x1200, h-740mm | C29: 7 | D29: 371 € | E29: 2,596.02 | F29: x | I29: 7 | J29: 2,596.02 € | AB29: 2,596.02 €
B30: L-09 Ümar koosolekulaud d.800mm, h.720mm | C30: 2 | D30: 83 € | E30: 165.40 | F30: x | I30: 1 | J30: 82.70 € | S30: 1 | T30: 82.70 € | V30: 28.27 € | W30: 6.61 € | X30: 34.59 € | Y30: 12.17 € | Z30: 1.06 € | AB30: 110.97 € | AC30: 6.61 € | AD30: 34.59 € | AE30: 12.17 € | AF30: 1.06 €
B31: L-10 Elektriline töölaud 1800x800xh610-1260mm, elektriliselt kõrgus reguleeritav | C31: 2 | D31: 263 € | E31: 525.48 | F31: x | I31: 2 | J31: 525.48 € | AB31: 525.48 €
B32: L-11 Töölaud 600x1000, h-740mm | C32: 1 | D32: 106 € | E32: 106.47 | F32: x | O32: 1 | P32: 106.47 € | AE32: 106.47 €
B33: L-12 Töölaud 1200x800mm, h610-1260mm | C33: 1 | D33: 257 € | E33: 256.81 | F33: x | M33: 1 | N33: 256.81 € | AD33: 256.81 €
B34: L-13 Töölaud 1600x800mm, h610-1260mm | C34: 4 | D34: 266 € | E34: 1,062.04 | F34: x | O34: 4 | P34: 1,062.04 € | AE34: 1,062.04 €
B35: L-13-a Töölaud 1600x800mm, h610-1260mm (305 - 2tk; 306 - 2tk) | C35: 4 | D35: 406 € | E35: 1,622.77 | F35: x | O35: 4 | P35: 1,622.77 € | AE35: 1,622.77 €
B36: L-14 Töölaud 1600x1000mm, h610-1260mm | C36: 3 | D36: 272 € | E36: 815.46 | F36: x | M36: 2 | N36: 543.64 € | O36: 1 | P36: 271.82 € | AD36: 543.64 € | AE36: 271.82 €
B37: LP-01 Lille pedestaal 600x250, h. 650mm | C37: 2 | D37: 195 € | E37: 389.34 | F37: x | S37: 2 | T37: 389.34 € | V37: 133.11 € | W37: 31.12 € | X37: 162.85 € | Y37: 57.28 € | Z37: 4.97 € | AB37: 133.11 € | AC37: 31.12 € | AD37: 162.85 € | AE37: 57.28 € | AF37: 4.97 €
B38: N-01 Riidenagi Mõõdud: 620xh1860mm | C38: 29 | D38: 84 € | E38: 2,433.97 | F38: x | I38: 7 | J38: 587.51 € | K38: 2 | L38: 167.86 € | M38: 11 | N38: 923.23 € | O38: 5 | P38: 419.65 € | Q38: 1 | R38: 83.93 € | S38: 3 | T38: 251.79 € | V38: 86.08 € | W38: 20.13 € | X38: 105.32 € | Y38: 37.05 € | Z38: 3.22 € | AB38: 673.59 € | AC38: 187.99 € | AD38: 1,028.55 € | AE38: 456.70 € | AF38: 87.15 €
B39: N-02 Riidenagi Trossi pikkus 2500 mm, Nagi pikkus 640 mm | C39: 7 | D39: 139 € | E39: 976.22 | F39: x | S39: 7 | T39: 976.22 € | V39: 333.75 € | W39: 78.04 € | X39: 408.33 € | Y39: 143.63 € | Z39: 12.47 € | AB39: 333.75 € | AC39: 78.04 € | AD39: 408.33 € | AE39: 143.63 € | AF39: 12.47 €
B40: RS-01 Riidepuu toru 600mm | C40: 2 | D40: 22 € | E40: 43.64 | F40: x | M40: 2 | N40: 43.64 € | AD40: 43.64 €
B41: S-01 Akustiline lauasirm 1400x450x40mm | C41: 38 | D41: 209 € | E41: 7,931.74 | F41: x | I41: 4 | J41: 834.92 € | K41: 4 | L41: 834.92 € | M41: 25 | N41: 5,218.25 € | O41: 5 | P41: 1,043.65 € | AB41: 834.92 € | AC41: 834.92 € | AD41: 5,218.25 € | AE41: 1,043.65 €
B42: S-01-a Akustiline lauasirm 1400x450x40mm | C42: 6 | D42: 185 € | E42: 1,110.60 | F42: x | M42: 6 | N42: 1,110.60 € | AD42: 1,110.60 €
B43: S-01-b-a Akustiline lauasirm 1600x450x40mm (305 - 1tk) | C43: 1 | D43: 319 € | E43: 319.37 | F43: x | O43: 1 | P43: 319.37 € | AE43: 319.37 €
B44: S-02 Akustiline lauasirm 800x450x40mm | C44: 32 | D44: 164 € | E44: 5,234.56 | F44: x | M44: 32 | N44: 5,234.56 € | AD44: 5,234.56 €
B45: S-02-a Akustiline lauasirm 800x450x40mm | C45: 12 | D45: 173 € | E45: 2,070.00 | F45: x | M45: 12 | N45: 2,070.00 € | AD45: 2,070.00 €
B46: S-03 Akustiline põrandasirm | C46: 1 | D46: 619 € | E46: 618.75 | F46: x | S46: 1 | T46: 618.75 € | V46: 211.54 € | W46: 49.46 € | X46: 258.81 € | Y46: 91.04 € | Z46: 7.90 € | AB46: 211.54 € | AC46: 49.46 € | AD46: 258.81 € | AE46: 91.04 € | AF46: 7.90 €
B47: SP-01 Ratastel sahtliboks Mõõt: 424x575x600mm | C47: 28 | D47: 175 € | E47: 4,898.88 | F47: x | I47: 11 | J47: 1,924.56 € | K47: 10 | L47: 1,749.60 € | M47: 1 | N47: 174.96 € | O47: 5 | P47: 874.80 € | Q47: 1 | R47: 174.96 € | AB47: 1,924.56 € | AC47: 1,749.60 € | AD47: 174.96 € | AE47: 874.80 € | AF47: 174.96 €
B48: SP-01-a Ratastel sahtliboks Mõõt: 424x575x600mm (105.2, 1tk; 105.3, 1tk; 102, 1tk; 305, 2tk; 306, 2tk; 410, 1tk) | C48: 8 | D48: 0 € | E48: 0.00 | F48: x | M48: 2 | N48: 0.00 € | O48: 5 | P48: 0.00 € | S48: 1 | T48: 0.00 € | V48: 0.00 € | W48: 0.00 € | X48: 0.00 € | Y48: 0.00 € | Z48: 0.00 €
B49: SP-01-b Ratastel sahtliboks Forma5 sahtiboks L33x 59x59 (105, 2tk) | C49: 2 | D49: 319 € | E49: 638.75 | F49: x | M49: 2 | N49: 638.75 € | AD49: 638.75 €
B50: T-01 8H töötool Kõrgus 1050-1230mm, istme kõrgus 430-540mm, istme laius 500mm, istme sügavus 460mm regul., seljatoe kõrgus 640mm. | C50: 26 | D50: 177 € | E50: 4,597.84 | F50: x | I50: 11 | J50: 1,945.24 € | K50: 10 | L50: 1,768.40 € | O50: 4 | P50: 707.36 € | Q50: 1 | R50: 176.84 € | AB50: 1,945.24 € | AC50: 1,768.40 € | AE50: 707.36 € | AF50: 176.84 €
B51: T-01-a 8H töötool peatoega Kõrgus 1050-1230mm, istme kõrgus 430-540mm, istme laius 500mm, istme sügavus 460mm regul., seljatoe kõrgus 640mm. | C51: 61 | D51: 197 € | E51: 12,004.19 | F51: x | M51: 61 | N51: 12,004.19 € | AD51: 12,004.19 €
B52: T-02 Klienditool Mõõdud: W51xD52xH77cm | C52: 27 | D52: 161 € | E52: 4,352.94 | F52: x | M52: 17 | N52: 2,740.74 € | O52: 2 | P52: 322.44 € | S52: 8 | T52: 1,289.76 € | V52: 440.94 € | W52: 103.10 € | X52: 539.48 € | Y52: 189.76 € | Z52: 16.47 € | AB52: 440.94 € | AC52: 103.10 € | AD52: 3,280.22 € | AE52: 512.20 € | AF52: 16.47 €
B53: T-03 8H töötool peatoega Kõrgus 1050-1230mm, istme kõrgus 430-540mm, istme laius 500mm, istme sügavus 460mm regul., seljatoe kõrgus 640mm. | C53: 5 | D53: 258 € | E53: 1,288.45 | F53: x | M53: 1 | N53: 257.69 € | O53: 2 | P53: 515.38 € | S53: 2 | T53: 515.38 € | V53: 176.20 € | W53: 41.20 € | X53: 215.57 € | Y53: 75.83 € | Z53: 6.58 € | AB53: 176.20 € | AC53: 41.20 € | AD53: 473.26 € | AE53: 591.21 € | AF53: 6.58 €
B54: T-04 Pukk Kõrgus 650/680 mm Laius 345 mm Sõgavus 320 mm | C54: 8 | D54: 167 € | E54: 1,339.12 | F54: x | M54: 4 | N54: 669.56 € | S54: 4 | T54: 669.56 € | V54: 228.91 € | W54: 53.52 € | X54: 280.06 € | Y54: 98.51 € | Z54: 8.55 € | AB54: 228.91 € | AC54: 53.52 € | AD54: 949.62 € | AE54: 98.51 € | AF54: 8.55 €
B55: T-05 tool Laius 52,1, Sügavus 55,2 cm, Kõrgus 80,6 cm, Istme kõrgus 42,5 cm | C55: 133 | D55: 95 € | E55: 12,581.80 | F55: x | I55: 119 | J55: 11,257.40 € | K55: 12 | L55: 1,135.20 € | S55: 2 | T55: 189.20 € | V55: 64.68 € | W55: 15.12 € | X55: 79.14 € | Y55: 27.84 € | Z55: 2.42 € | AB55: 11,322.08 € | AC55: 1,150.32 € | AD55: 79.14 € | AE55: 27.84 € | AF55: 2.42 €
B56: T-06 klapptool | C56: 14 | D56: 179 € | E56: 2,505.16 | F56: x | S56: 14 | T56: 2,505.16 € | V56: 856.47 € | W56: 200.26 € | X56: 1,047.85 € | Y56: 368.58 € | Z56: 31.99 € | AB56: 856.47 € | AC56: 200.26 € | AD56: 1,047.85 € | AE56: 368.58 € | AF56: 31.99 €
B57: P-01 Seinapeegel Mõõdud: 500x1700mm | C57: 2 | D57: 182 € | E57: 363.24 | F57: x | S57: 2 | T57: 363.24 € | V57: 124.18 € | W57: 29.04 € | X57: 151.94 € | Y57: 53.44 € | Z57: 4.64 € | AB57: 124.18 € | AC57: 29.04 € | AD57: 151.94 € | AE57: 53.44 € | AF57: 4.64 €
B58: P-01-a Seinapeegel koridoridesse, Mõõdud: 500x1700mm | C58: 4 | D58: 244 € | E58: 976.62 | F58: x | S58: 4 | T58: 976.62 € | V58: 333.89 € | W58: 78.07 € | X58: 408.50 € | Y58: 143.69 € | Z58: 12.47 € | AB58: 333.89 € | AC58: 78.07 € | AD58: 408.50 € | AE58: 143.69 € | AF58: 12.47 €
B59: P-01-b Seinapeegel tualettruumidesse | C59: 2 | D59: 118 € | E59: 236.76 | F59: x | S59: 2 | T59: 236.76 € | V59: 80.94 € | W59: 18.93 € | X59: 99.03 € | Y59: 34.83 € | Z59: 3.02 € | AB59: 80.94 € | AC59: 18.93 € | AD59: 99.03 € | AE59: 34.83 € | AF59: 3.02 €
B60: 5. korruse rulood | C60: 15 | D60: 110 € | E60: 1,648.10 | F60: x | I60: 15 | J60: 1,648.10 € | AB60: 1,648.10 €
B61: Siseprügikast 2-ne | C61: 8 | D61: 558 € | E61: 4,467.12 | F61: x | S61: 8 | T61: 4,467.12 € | V61: 1,527.22 € | W61: 357.10 € | X61: 1,868.50 € | Y61: 657.25 € | Z61: 57.05 € | AB61: 1,527.22 € | AC61: 357.10 € | AD61: 1,868.50 € | AE61: 657.25 € | AF61: 57.05 €
B62: Siseprügikast 1-ne | C62: 1 | D62: 465 € | E62: 465.37 | F62: x | S62: 1 | T62: 465.37 € | V62: 159.10 € | W62: 37.20 € | X62: 194.65 € | Y62: 68.47 € | Z62: 5.94 € | AB62: 159.10 € | AC62: 37.20 € | AD62: 194.65 € | AE62: 68.47 € | AF62: 5.94 €
B63: Kaablirennid | C63: 88 | D63: 27 € | E63: 2,406.80 | F63: x | I63: 10 | J63: 273.50 € | K63: 10 | L63: 273.50 € | M63: 59 | N63: 1,613.65 € | O63: 4 | P63: 109.40 € | Q63: 1 | R63: 27.35 € | S63: 4 | T63: 109.40 € | V63: 37.40 € | W63: 8.75 € | X63: 45.76 € | Y63: 16.10 € | Z63: 1.40 € | AB63: 310.90 € | AC63: 282.25 € | AD63: 1,659.41 € | AE63: 125.50 € | AF63: 28.75 €
B64: Kaablirosetid laudadele | C64: 26 | D64: 4 € | E64: 110.50 | F64: x | I64: 10 | J64: 42.50 € | K64: 10 | L64: 42.50 € | O64: 2 | P64: 8.50 € | Q64: 1 | R64: 4.25 € | S64: 3 | T64: 12.75 € | V64: 4.36 € | W64: 1.02 € | X64: 5.33 € | Y64: 1.88 € | Z64: 0.16 € | AB64: 46.86 € | AC64: 43.52 € | AD64: 5.33 € | AE64: 10.38 € | AF64: 4.41 €
B65: Seinakell | C65: 6 | D65: 42 € | E65: 250.00 | F65: x | M65: 2 | N65: 83.33 € | S65: 4 | T65: 166.67 € | V65: 56.98 € | W65: 13.32 € | X65: 69.71 € | Y65: 24.52 € | Z65: 2.13 € | AB65: 56.98 € | AC65: 13.32 € | AD65: 153.05 € | AE65: 24.52 € | AF65: 2.13 €
B66: Garderoobikappide võtmehoidjad | C66: 34 | D66: 3 € | E66: 93.79 | F66: x | K66: 8 | L66: 22.07 € | M66: 8 | N66: 22.07 € | O66: 8 | P66: 22.07 € | S66: 10 | T66: 27.59 € | V66: 9.43 € | W66: 2.21 € | X66: 11.54 € | Y66: 4.06 € | Z66: 0.35 € | AB66: 9.43 € | AC66: 24.27 € | AD66: 33.61 € | AE66: 26.13 € | AF66: 0.35 €
B67: Võtmekapp | C67: 1 | D67: 260 € | E67: 260.00 | F67: x | S67: 1 | T67: 260.00 € | V67: 88.89 € | W67: 20.78 € | X67: 108.75 € | Y67: 38.25 € | Z67: 3.32 € | AB67: 88.89 € | AC67: 20.78 € | AD67: 108.75 € | AE67: 38.25 € | AF67: 3.32 €
B68: Lockerkappide võtmehoidjad | C68: 198 | D68: 3 € | E68: 546.21 | F68: x | M68: 198 | N68: 546.21 € | AD68: 546.21 €
B69: riidepuud | C69: 64 | D69: 1 € | E69: 39.92 | F69: x | S69: 64 | T69: 39.92 € | V69: 13.65 € | W69: 3.19 € | X69: 16.70 € | Y69: 5.87 € | Z69: 0.51 € | AB69: 13.65 € | AC69: 3.19 € | AD69: 16.70 € | AE69: 5.87 € | AF69: 0.51 €
B70: Lastelaud, lastetoolid (105, IKEA-st) | C70: 1 | D70: 150 € | E70: 150.00 | F70: x | M70: 1 | N70: 150.00 € | AD70: 150.00 €
B71: Veekeetjad | C71: 4 | D71: 37 € | E71: 149.97 | F71: x | S71: 4 | T71: 149.97 € | V71: =IFERROR(IF(ISBLANK($T71),"",$T71*$AP$7),"") -> 51.27 € | W71: =IFERROR(IF(ISBLANK($T71),"",$T71*$AP$8),"") -> 11.99 € | X71: =IFERROR(IF(ISBLANK($T71),"",$T71*$AP$9),"") -> 62.73 € | Y71: =IFERROR(IF(ISBLANK($T71),"",$T71*$AP$10),"") -> 22.07 € | Z71: 1.92 € | AB71: =IF(SUM(J71,V71)=0,"",SUM(J71,V71)) -> 51.27 € | AC71: =IF(SUM(L71,W71)=0,"",SUM(L71,W71)) -> 11.99 € | AD71: =IF(SUM(N71,X71)=0,"",SUM(N71,X71)) -> 62.73 € | AE71: =IF(SUM(P71,Y71)=0,"",SUM(P71,Y71)) -> 22.07 € | AF71: =IF(SUM(R71,Z71)=0,"",SUM(R71,Z71)) -> 1.92 €
B72: Sööginõud | C72: =IF(I72+K72+M72+O72+Q72+S72=0,"",I72+K72+M72+O72+Q72+S72) -> 1 | D72: 1,041 € | E72: =IFERROR(SUM(C72*D72),"") -> 1,040.84 | F72: x | H72: =IFERROR(IF(SUM(I72,K72,M72,O72,Q72,S72)-C72=0,"","K"),"") ->  | J72: =IF(ISBLANK(I72),"",SUM(I72*$D72)) ->  | L72: =IF(ISBLANK(K72),"",SUM(K72*$D72)) ->  | N72: =IF(ISBLANK(M72),"",SUM(M72*$D72)) ->  | P72: =IF(ISBLANK(O72),"",SUM(O72*$D72)) ->  | R72: =IF(ISBLANK(Q72),"",SUM(Q72*$D72)) ->  | S72: 1 | T72: =IF(ISBLANK(S72),"",SUM(S72*$D72)) -> 1,040.84 € | V72: 355.84 € | W72: 83.21 € | X72: 435.36 € | Y72: 153.14 € | Z72: =IFERROR(IF(ISBLANK($T72),"",$T72*$AP$11),"") -> 13.29 € | AB72: 355.84 € | AC72: 83.21 € | AD72: 435.36 € | AE72: 153.14 € | AF72: 13.29 €
B73: Pikendusjuhtmed | C73: 1 | D73: 300 € | E73: 299.83 | F73: x | M73: 1 | N73: 299.83 € | AD73: 299.83 €
B74: RU-01 Ruloo Akna ava suurus L1460xH1540 | C74: 2 | D74: 82 € | E74: 164.91 | F74: x | S74: 2 | T74: 164.91 € | V74: 56.38 € | W74: 13.18 € | X74: 68.98 € | Y74: 24.26 € | Z74: 2.11 € | AB74: 56.38 € | AC74: 13.18 € | AD74: 68.98 € | AE74: 24.26 € | AF74: 2.11 €
B75: RU-02 Ruloo Akna ava suurus L2200xH1540 | C75: 23 | D75: 82 € | E75: 1,896.44 | F75: x | I75: 2 | J75: 164.91 € | K75: 2 | L75: 164.91 € | M75: 12 | N75: 989.45 € | O75: 7 | P75: 577.18 € | AB75: 164.91 € | AC75: 164.91 € | AD75: 989.45 € | AE75: 577.18 €
B76: RU-03 Ruloo Akna ava suurus L1780xH1540 | C76: 4 | D76: 82 € | E76: 329.82 | F76: x | K76: 1 | L76: 82.45 € | M76: 3 | N76: 247.36 € | AC76: 82.45 € | AD76: 247.36 €
B77: RU-04 Ruloo Akna ava suurus L2200xH1540 | C77: 3 | D77: 82 € | E77: 247.36 | F77: x | M77: 3 | N77: 247.36 € | AD77: 247.36 €
B78: RU-05 Ruloo Akna ava suurus L1660xH1590 | C78: 3 | D78: 82 € | E78: 247.36 | F78: x | K78: 1 | L78: 82.45 € | M78: 2 | N78: 164.91 € | AC78: 82.45 € | AD78: 164.91 €
B79: RU-06 Ruloo Akna ava suurus L2200xH1590 | C79: 6 | D79: 82 € | E79: 494.72 | F79: x | I79: 1 | J79: 82.45 € | K79: 1 | L79: 82.45 € | M79: 4 | N79: 329.82 € | AB79: 82.45 € | AC79: 82.45 € | AD79: 329.82 €
B80: RU-07 Ruloo Akna ava suurus L2200xH1590 | C80: 3 | D80: 82 € | E80: 247.36 | F80: x | I80: 2 | J80: 164.91 € | K80: 1 | L80: 82.45 € | AB80: 164.91 € | AC80: 82.45 €
B81: Erimööbel
B82: SKF-1 | C82: 1 | D82: 1,126 € | E82: 1,125.66 | F82: x | S82: 1 | T82: 1,125.66 € | V82: 384.84 € | W82: 89.99 € | X82: 470.84 € | Y82: 165.62 € | Z82: 14.38 € | AB82: 384.84 € | AC82: 89.99 € | AD82: 470.84 € | AE82: 165.62 € | AF82: 14.38 €
B83: SKF-2 | C83: 1 | D83: 869 € | E83: 868.72 | F83: x | S83: 1 | T83: 868.72 € | V83: 297.00 € | W83: 69.45 € | X83: 363.37 € | Y83: 127.82 € | Z83: 11.09 € | AB83: 297.00 € | AC83: 69.45 € | AD83: 363.37 € | AE83: 127.82 € | AF83: 11.09 €
B84: SKF-3 | C84: 1 | D84: 464 € | E84: 464.37 | F84: x | S84: 1 | T84: 464.37 € | V84: 158.76 € | W84: 37.12 € | X84: 194.24 € | Y84: 68.32 € | Z84: 5.93 € | AB84: 158.76 € | AC84: 37.12 € | AD84: 194.24 € | AE84: 68.32 € | AF84: 5.93 €
B85: SKF-4 | C85: 1 | D85: 1,000 € | E85: 1,000.35 | F85: x | S85: 1 | T85: 1,000.35 € | V85: 342.00 € | W85: 79.97 € | X85: 418.42 € | Y85: 147.18 € | Z85: 12.78 € | AB85: 342.00 € | AC85: 79.97 € | AD85: 418.42 € | AE85: 147.18 € | AF85: 12.78 €
B86: SKF-5 | C86: 1 | D86: 2,929 € | E86: 2,929.45 | F86: x | S86: 1 | T86: 2,929.45 € | V86: 1,001.52 € | W86: 234.18 € | X86: 1,225.32 € | Y86: 431.01 € | Z86: 37.41 € | AB86: 1,001.52 € | AC86: 234.18 € | AD86: 1,225.32 € | AE86: 431.01 € | AF86: 37.41 €
B87: SKF-6 | C87: 2 | D87: 599 € | E87: 1,198.31 | F87: x | S87: 2 | T87: 1,198.31 € | V87: 409.68 € | W87: 95.79 € | X87: 501.23 € | Y87: 176.31 € | Z87: 15.30 € | AB87: 409.68 € | AC87: 95.79 € | AD87: 501.23 € | AE87: 176.31 € | AF87: 15.30 €
B88: SKF-7 | C88: 1 | D88: 767 € | E88: 766.58 | F88: x | S88: 1 | T88: 766.58 € | V88: 262.08 € | W88: 61.28 € | X88: 320.64 € | Y88: 112.79 € | Z88: 9.79 € | AB88: 262.08 € | AC88: 61.28 € | AD88: 320.64 € | AE88: 112.79 € | AF88: 9.79 €
B89: SKF-8 | C89: 1 | D89: 1,067 € | E89: 1,066.69 | F89: x | S89: 1 | T89: 1,066.69 € | V89: 364.68 € | W89: 85.27 € | X89: 446.17 € | Y89: 156.94 € | Z89: 13.62 € | AB89: 364.68 € | AC89: 85.27 € | AD89: 446.17 € | AE89: 156.94 € | AF89: 13.62 €
B90: SKF-9 | C90: 1 | D90: 1,772 € | E90: 1,772.20 | F90: x | S90: 1 | T90: 1,772.20 € | V90: 605.88 € | W90: 141.67 € | X90: 741.27 € | Y90: 260.74 € | Z90: 22.63 € | AB90: 605.88 € | AC90: 141.67 € | AD90: 741.27 € | AE90: 260.74 € | AF90: 22.63 €
B91: SKF-10 | C91: 1 | D91: 2,905 € | E91: 2,905.23 | F91: x | S91: 1 | T91: 2,905.23 € | V91: 993.24 € | W91: 232.24 € | X91: 1,215.19 € | Y91: 427.45 € | Z91: 37.10 € | AB91: 993.24 € | AC91: 232.24 € | AD91: 1,215.19 € | AE91: 427.45 € | AF91: 37.10 €
B92: SKF-11 | C92: 1 | D92: 751 € | E92: 750.79 | F92: x | S92: 1 | T92: 750.79 € | V92: 256.68 € | W92: 60.02 € | X92: 314.04 € | Y92: 110.46 € | Z92: 9.59 € | AB92: 256.68 € | AC92: 60.02 € | AD92: 314.04 € | AE92: 110.46 € | AF92: 9.59 €
B93: SKF-12 | C93: 1 | D93: 1,516 € | E93: 1,516.32 | F93: x | S93: 1 | T93: 1,516.32 € | V93: 518.40 € | W93: 121.22 € | X93: 634.24 € | Y93: 223.10 € | Z93: 19.37 € | AB93: 518.40 € | AC93: 121.22 € | AD93: 634.24 € | AE93: 223.10 € | AF93: 19.37 €
B94: SKF-13 | C94: 1 | D94: 1,227 € | E94: 1,226.74 | F94: x | S94: 1 | T94: 1,226.74 € | V94: 419.40 € | W94: 98.07 € | X94: 513.12 € | Y94: 180.49 € | Z94: 15.67 € | AB94: 419.40 € | AC94: 98.07 € | AD94: 513.12 € | AE94: 180.49 € | AF94: 15.67 €
B95: SKF-14 | C95: 1 | D95: 629 € | E95: 628.64 | F95: x | S95: 1 | T95: 628.64 € | V95: 214.92 € | W95: 50.25 € | X95: 262.95 € | Y95: 92.49 € | Z95: 8.03 € | AB95: 214.92 € | AC95: 50.25 € | AD95: 262.95 € | AE95: 92.49 € | AF95: 8.03 €
B96: SKF-15 | C96: 1 | D96: 624 € | E96: 624.43 | F96: x | S96: 1 | T96: 624.43 € | V96: 213.48 € | W96: 49.92 € | X96: 261.18 € | Y96: 91.87 € | Z96: 7.97 € | AB96: 213.48 € | AC96: 49.92 € | AD96: 261.18 € | AE96: 91.87 € | AF96: 7.97 €
B97: saali tribüün | C97: 1 | D97: 7,551 € | E97: 7,551.30 | F97: x | I97: 1 | J97: 7,551.30 € | AB97: 7,551.30 €
B98: voldiksein SU-V-01 | C98: 1 | D98: 11,035 € | E98: 11,035.12 | F98: x | I98: 1 | J98: 11,035.12 € | AB98: 11,035.12 €
B99: Pesuruumi kapp, EM-01 | C99: 1 | D99: 909 € | E99: 909.07 | F99: x | S99: 1 | T99: 909.07 € | V99: 310.79 € | W99: 72.67 € | X99: 380.24 € | Y99: 133.75 € | Z99: 11.61 € | AB99: 310.79 € | AC99: 72.67 € | AD99: 380.24 € | AE99: 133.75 € | AF99: 11.61 €
B100: teeninduslett, EM-02 | C100: 1 | D100: 3,656 € | E100: 3,655.85 | F100: x | M100: 1 | N100: 3,655.85 € | AD100: 3,655.85 €
B101: laua ümbrised, EM-03.1 ja 03.2 | C101: 1 | D101: 283 € | E101: 282.82 | F101: x | S101: 1 | T101: 282.82 € | V101: 96.69 € | W101: 22.61 € | X101: 118.30 € | Y101: 41.61 € | Z101: 3.61 € | AB101: 96.69 € | AC101: 22.61 € | AD101: 118.30 € | AE101: 41.61 € | AF101: 3.61 €
B102: kapifront, EM-04 | C102: 1 | D102: 1,414 € | E102: 1,414.11 | F102: x | M102: 1 | N102: 1,414.11 € | AD102: 1,414.11 €
B103: kapifront, EM-05 | C103: 2 | D103: 2,655 € | E103: 5,310.60 | F103: x | S103: 2 | T103: 5,310.60 € | V103: 1,815.59 € | W103: 424.53 € | X103: 2,221.30 € | Y103: 781.35 € | Z103: 67.82 € | AB103: 1,815.59 € | AC103: 424.53 € | AD103: 2,221.30 € | AE103: 781.35 € | AF103: 67.82 €
B104: kapifront, EM-06 | C104: 1 | D104: 2,121 € | E104: 2,121.16 | F104: x | S104: 1 | T104: 2,121.16 € | V104: 725.18 € | W104: 169.57 € | X104: 887.23 € | Y104: 312.09 € | Z104: 27.09 € | AB104: 725.18 € | AC104: 169.57 € | AD104: 887.23 € | AE104: 312.09 € | AF104: 27.09 €
B105: saali istenurk, EM-07 | C105: 1 | D105: 2,727 € | E105: 2,727.21 | F105: x | S105: 1 | T105: 2,727.21 € | V105: 932.38 € | W105: 218.01 € | X105: 1,140.73 € | Y105: 401.25 € | Z105: 34.83 € | AB105: 932.38 € | AC105: 218.01 € | AD105: 1,140.73 € | AE105: 401.25 € | AF105: 34.83 €
B106: istepink, EM-08 | C106: 1 | D106: 808 € | E106: 808.06 | F106: x | I106: 1 | J106: 808.06 € | AB106: 808.06 €
B107: söögiala pink, EM-09 | C107: 1 | D107: 1,717 € | E107: 1,717.13 | F107: x | S107: 1 | T107: 1,717.13 € | V107: 587.05 € | W107: 137.27 € | X107: 718.24 € | Y107: 252.64 € | Z107: 21.93 € | AB107: 587.05 € | AC107: 137.27 € | AD107: 718.24 € | AE107: 252.64 € | AF107: 21.93 €
B108: Telefonibox 1, EM-10 | C108: 1 | D108: 2,727 € | E108: 2,727.21 | F108: x | S108: 1 | T108: 2,727.21 € | V108: 932.38 € | W108: 218.01 € | X108: 1,140.73 € | Y108: 401.25 € | Z108: 34.83 € | AB108: 932.38 € | AC108: 218.01 € | AD108: 1,140.73 € | AE108: 401.25 € | AF108: 34.83 €
B109: garderoobikapp, EM-11 | C109: 1 | D109: 808 € | E109: 808.06 | F109: x | M109: 1 | N109: 808.06 € | AD109: 808.06 €
B110: Telefonibox 2, EM-12 | C110: 1 | D110: 2,727 € | E110: 2,727.21 | F110: x | S110: 1 | T110: 2,727.21 € | V110: 932.38 € | W110: 218.01 € | X110: 1,140.73 € | Y110: 401.25 € | Z110: 34.83 € | AB110: 932.38 € | AC110: 218.01 € | AD110: 1,140.73 € | AE110: 401.25 € | AF110: 34.83 €
B111: garderoobikapp, EM-13 | C111: 1 | D111: 1,616 € | E111: 1,616.12 | F111: x | K111: 1 | L111: 1,616.12 € | AC111: 1,616.12 €
B112: kapifront, EM-14 | C112: 1 | D112: 1,455 € | E112: 1,454.88 | F112: x | S112: 1 | T112: 1,454.88 € | V112: 497.39 € | W112: 116.30 € | X112: 608.54 € | Y112: 214.06 € | Z112: 18.58 € | AB112: 497.39 € | AC112: 116.30 € | AD112: 608.54 € | AE112: 214.06 € | AF112: 18.58 €
B113: laud, EM-15 | C113: 1 | D113: 687 € | E113: 687.22 | F113: x | S113: 1 | T113: 687.22 € | V113: 234.95 € | W113: 54.94 € | X113: 287.45 € | Y113: 101.11 € | Z113: 8.78 € | AA113: =IF(SUM(T113)=SUM(V113:Z113),"","K") ->  | AB113: 234.95 € | AC113: 54.94 € | AD113: 287.45 € | AE113: 101.11 € | AF113: 8.78 €
B114: Telefonibox 3, EM-16 | C114: 1 | D114: 2,727 € | E114: 2,727.21 | F114: x | S114: 1 | T114: 2,727.21 € | V114: 932.38 € | W114: 218.01 € | X114: 1,140.73 € | Y114: 401.25 € | Z114: 34.83 € | AB114: 932.38 € | AC114: 218.01 € | AD114: 1,140.73 € | AE114: 401.25 € | AF114: 34.83 €
B115: kõrge laud, EM-17 | C115: 1 | D115: 414 € | E115: 414.50 | F115: x | M115: 1 | N115: 414.50 € | AD115: 414.50 €
B116: tervitussein, EM-18 | C116: 1 | D116: 1,960 € | E116: 1,959.91 | F116: x | S116: 1 | T116: 1,959.91 € | V116: 670.06 € | W116: 156.68 € | X116: 819.79 € | Y116: 288.36 € | Z116: 25.03 € | AB116: 670.06 € | AC116: 156.68 € | AD116: 819.79 € | AE116: 288.36 € | AF116: 25.03 €
B117: kardinad | C117: 1 | D117: 7,561 € | E117: 7,561.28 | F117: x | S117: 1 | T117: 7,561.28 € | V117: 2,585.06 € | W117: 604.45 € | X117: 3,162.71 € | Y117: 1,112.49 € | Z117: 96.57 € | AB117: 2,585.06 € | AC117: 604.45 € | AD117: 3,162.71 € | AE117: 1,112.49 € | AF117: 96.57 €
B119: Tehnoloogia
B120: KK-3 Külmik madal | C120: 1 | D120: 360 € | E120: 360.47 | F120: x | S120: 1 | T120: 360.47 € | V120: 123.24 € | W120: 28.82 € | X120: 150.78 € | Y120: 53.04 € | Z120: 4.60 € | AB120: 123.24 € | AC120: 28.82 € | AD120: 150.78 € | AE120: 53.04 € | AF120: 4.60 €
B121: PM-01 Pesumasin | C121: 1 | D121: 1,016 € | E121: 1,015.87 | F121: x | S121: 1 | T121: 1,015.87 € | V121: 347.31 € | W121: 81.21 € | X121: 424.92 € | Y121: 149.46 € | Z121: 12.97 € | AB121: 347.31 € | AC121: 81.21 € | AD121: 424.92 € | AE121: 149.46 € | AF121: 12.97 €
B122: PK-01 Kuivati | C122: 1 | D122: 790 € | E122: 789.87 | F122: x | S122: 1 | T122: 789.87 € | V122: 270.04 € | W122: 63.14 € | X122: 330.38 € | Y122: 116.21 € | Z122: 10.09 € | AB122: 270.04 € | AC122: 63.14 € | AD122: 330.38 € | AE122: 116.21 € | AF122: 10.09 €
B123: Sisustuse maksumus kokku | E123: =SUM(E7:E122) -> 222,047.62 | J123: =SUM(J7:J122) -> 47,338.87 | L123: =SUM(L7:L122) -> 11,822.50 | N123: =SUM(N7:N122) -> 78,175.76 | P123: =SUM(P7:P122) -> 9,438.13 | R123: =SUM(R7:R122) -> 853.16 | T123: =SUM(T7:T122) -> 74,419.20 | V123: =SUM(V7:V122) -> 25,442.51 | W123: =SUM(W7:W122) -> 5,949.10 | X123: =SUM(X7:X122) -> 31,127.89 | Y123: =SUM(Y7:Y122) -> 10,949.29 | Z123: =SUM(Z7:Z122) -> 950.42 | AB123: =SUM(AB7:AB122) -> 72,781.38 | AC123: =SUM(AC7:AC122) -> 17,771.59 | AD123: =SUM(AD7:AD122) -> 109,303.65 | AE123: =SUM(AE7:AE122) -> 20,387.42 | AF123: =SUM(AF7:AF122) -> 1,803.58
B124: sh Tavasisustus | E124: =SUMIF($F$7:$F$122,"x",$E$7:$E$122) -> 222,047.62 | J124: =SUMIF($F$7:$F$122,"x",J$7:J$122) -> 47,338.87 | L124: =SUMIF($F$7:$F$122,"x",L$7:L$122) -> 11,822.50 | N124: =SUMIF($F$7:$F$122,"x",N$7:N$122) -> 78,175.76 | P124: =SUMIF($F$7:$F$122,"x",P$7:P$122) -> 9,438.13 | R124: =SUMIF($F$7:$F$122,"x",R$7:R$122) -> 853.16 | T124: =SUMIF($F$7:$F$122,"x",T$7:T$122) -> 74,419.20 | V124: =SUMIF($F$7:$F$122,"x",V$7:V$122) -> 25,442.51 | W124: =SUMIF($F$7:$F$122,"x",W$7:W$122) -> 5,949.10 | X124: =SUMIF($F$7:$F$122,"x",X$7:X$122) -> 31,127.89 | Y124: =SUMIF($F$7:$F$122,"x",Y$7:Y$122) -> 10,949.29 | Z124: =SUMIF($F$7:$F$122,"x",Z$7:Z$122) -> 950.42 | AB124: =SUMIF($F$7:$F$122,"x",AB$7:AB$122) -> 72,781.38 | AC124: =SUMIF($F$7:$F$122,"x",AC$7:AC$122) -> 17,771.59 | AD124: =SUMIF($F$7:$F$122,"x",AD$7:AD$122) -> 109,303.65 | AE124: =SUMIF($F$7:$F$122,"x",AE$7:AE$122) -> 20,387.42 | AF124: =SUMIF($F$7:$F$122,"x",AF$7:AF$122) -> 1,803.58
B125: sh Erisisustus | E125: =SUMIF($G$7:$G$122,"x",$E$7:$E$122) -> 0.00 | J125: =SUMIF($G$7:$G$122,"x",J$7:J$122) -> 0.00 | L125: =SUMIF($G$7:$G$122,"x",L$7:L$122) -> 0.00 | N125: =SUMIF($G$7:$G$122,"x",N$7:N$122) -> 0.00 | P125: =SUMIF($G$7:$G$122,"x",P$7:P$122) -> 0.00 | R125: =SUMIF($G$7:$G$122,"x",R$7:R$122) -> 0.00 | T125: =SUMIF($G$7:$G$122,"x",T$7:T$122) -> 0.00 | V125: =SUMIF($G$7:$G$122,"x",V$7:V$122) -> 0.00 | W125: =SUMIF($G$7:$G$122,"x",W$7:W$122) -> 0.00 | X125: =SUMIF($G$7:$G$122,"x",X$7:X$122) -> 0.00 | Y125: =SUMIF($G$7:$G$122,"x",Y$7:Y$122) -> 0.00 | Z125: =SUMIF($G$7:$G$122,"x",Z$7:Z$122) -> 0.00 | AB125: =SUMIF($G$7:$G$122,"x",AB$7:AB$122) -> 0.00 | AC125: =SUMIF($G$7:$G$122,"x",AC$7:AC$122) -> 0.00 | AD125: =SUMIF($G$7:$G$122,"x",AD$7:AD$122) -> 0.00 | AE125: =SUMIF($G$7:$G$122,"x",AE$7:AE$122) -> 0.00 | AF125: =SUMIF($G$7:$G$122,"x",AF$7:AF$122) -> 0.00
B126: Projektijuhtimise kaudne kulu | E126: =E123*2.5% -> 5,551.19 | J126: =J123*2.5% -> 1,183.47 | L126: =L123*2.5% -> 295.56 | N126: =N123*2.5% -> 1,954.39 | P126: =P123*2.5% -> 235.95 | R126: =R123*2.5% -> 21.33 | T126: =T123*2.5% -> 1,860.48 | V126: =V123*2.5% -> 636.06 | W126: 148.73 | X126: 778.20 | Y126: 273.73 | Z126: 23.76 | AB126: =AB123*2.5% -> 1,819.53 | AC126: 444.29 | AD126: 2,732.59 | AE126: 509.69 | AF126: 45.09
B127: sh Tavasisustus | E127: =E126*E124/E123 -> 5,551.19 | J127: =J126*J124/J123 -> 1,183.47 | L127: =L126*L124/L123 -> 295.56 | N127: =N126*N124/N123 -> 1,954.39 | P127: =P126*P124/P123 -> 235.95 | R127: =R126*R124/R123 -> 21.33 | T127: =T126*T124/T123 -> 1,860.48 | V127: =V126*V124/V123 -> 636.06 | W127: 148.73 | X127: 778.20 | Y127: 273.73 | Z127: 23.76 | AB127: =AB126*AB124/AB123 -> 1,819.53 | AC127: 444.29 | AD127: 2,732.59 | AE127: 509.69 | AF127: 45.09
B128: sh Erisisustus | E128: =E126*E125/E123 -> 0.00 | J128: =J126*J125/J123 -> 0.00 | L128: =L126*L125/L123 -> 0.00 | N128: =N126*N125/N123 -> 0.00 | P128: =P126*P125/P123 -> 0.00 | R128: =R126*R125/R123 -> 0.00 | T128: =T126*T125/T123 -> 0.00 | V128: =V126*V125/V123 -> 0.00 | W128: 0.00 | X128: 0.00 | Y128: 0.00 | Z128: 0.00 | AB128: =AB126*AB125/AB123 -> 0.00 | AC128: 0.00 | AD128: 0.00 | AE128: 0.00 | AF128: 0.00
B129: Sisustuse algväärtus kokku | E129: =SUM(E124:E126) -> 227,598.81 | J129: =J123+J126 -> 48,522.34 | L129: =L123+L126 -> 12,118.06 | N129: =N123+N126 -> 80,130.15 | P129: =P123+P126 -> 9,674.09 | R129: =R123+R126 -> 874.49 | T129: =T123+T126 -> 76,279.68 | V129: =V123+V126 -> 26,078.57 | W129: 6,097.82 | X129: 31,906.09 | Y129: 11,223.02 | Z129: 974.18 | AB129: =AB123+AB126 -> 74,600.91 | AC129: 18,215.88 | AD129: 112,036.24 | AE129: 20,897.10 | AF129: 1,848.67
B130: sh Tavasisustus kokku | E130: =E124+E127 -> 227,598.81 | J130: =J124+J127 -> 48,522.34 | L130: 12,118.06 | N130: =N124+N127 -> 80,130.15 | P130: =P124+P127 -> 9,674.09 | R130: =R124+R127 -> 874.49 | T130: =T124+T127 -> 76,279.68 | V130: 26,078.57 | W130: 6,097.82 | X130: 31,906.09 | Y130: 11,223.02 | Z130: 974.18 | AB130: 74,600.91 | AC130: 18,215.88 | AD130: 112,036.24 | AE130: 20,897.10 | AF130: 1,848.67
B131: sh Erisisustus kokku | E131: =E125+E128 -> 0.00 | J131: 0.00 | L131: 0.00 | N131: 0.00 | P131: 0.00 | R131: 0.00 | T131: 0.00 | V131: 0.00 | W131: 0.00 | X131: 0.00 | Y131: 0.00 | Z131: 0.00 | AB131: 0.00 | AC131: 0.00 | AD131: 0.00 | AE131: 0.00 | AF131: 0.00
B132: Tavasisustuse remonttööd | E132: 664.00 | J132: =$E$132*J123/$E$123 -> 141.56 | L132: =$E$132*L123/$E$123 -> 35.35 | N132: =$E$132*N123/$E$123 -> 233.77 | P132: =$E$132*P123/$E$123 -> 28.22 | R132: =$E$132*R123/$E$123 -> 2.55 | T132: =$E$132*T123/$E$123 -> 222.54 | V132: =$E$132*V123/$E$123 -> 76.08 | W132: 17.79 | X132: 93.08 | Y132: 32.74 | Z132: 2.84 | AB132: =$E$132*AB123/$E$123 -> 217.64 | AC132: 53.14 | AD132: 326.86 | AE132: 60.97 | AF132: 5.39
B133: Sisustuse lõppväärtus | E133: 0.00 | J133: =$E$133*J123/$E$123 -> 0.00 | L133: =$E$133*L123/$E$123 -> 0.00 | N133: =$E$133*N123/$E$123 -> 0.00 | P133: =$E$133*P123/$E$123 -> 0.00 | R133: =$E$133*R123/$E$123 -> 0.00 | T133: =$E$133*T123/$E$123 -> 0.00 | V133: =$E$133*V123/$E$123 -> 0.00 | W133: 0.00 | X133: 0.00 | Y133: 0.00 | Z133: 0.00 | AB133: =$E$133*AB123/$E$123 -> 0.00 | AC133: 0.00 | AD133: 0.00 | AE133: 0.00 | AF133: 0.00
B134: Käibemaks | C134: 20% | E134: =E129*C134 -> 45,519.76
B135: Tegelik maksumus kokku, km-ga: | E135: =SUM(E129,E134) -> 273,118.57
